bitfinex-derivatives/quotes_SOLF0:USTF0_20250310
["timestamp","ask_amount","ask_price","bid_price","bid_amount"]
[1741640393380,8.4255,118.77,118.7,277.82]
[1741640393586,8.4285,118.72,118.7,277.82]
[1741640393891,18.50529358,118.77,118.7,277.82]
[1741640394086,0.05673354,118.72,118.7,277.84140801]
[1741640394284,18.50529358,118.77,118.7,277.84140801]
[1741640394483,8.4273,118.74,118.71,8.4284]
[1741640394885,10.07979358,118.74,118.71,0.02140801]
[1741640395084,18.50679358,118.74,118.71,8.44980801]
[1741640395794,8.4276,118.73,118.71,0.02140801]
[1741640396188,10.07979358,118.73,118.71,0.02140801]
[1741640396386,8.428,118.72,118.71,0.02140801]
[1741640396587,10.07979358,118.73,118.71,0.02140801]
[1741640396993,8.428,118.72,118.71,0.02140801]
[1741640397587,18.50779358,118.72,118.71,0.02140801]
[1741640399293,18.50779358,118.72,118.71,8.01e-06]
[1741640400096,10.07979358,118.72,118.71,8.01e-06]
[1741640403101,32.79482007,118.74,118.66,41.2]
[1741640403393,4.3226,118.71,118.65,277.92]
[1741640403590,4.3429,118.7,118.65,277.92]
[1741640403789,8.7626,118.7,118.65,277.92]
[1741640403992,18.84238557,118.7,118.6,414.6082204]
[1741640404198,18.84238557,118.7,118.62,41.2]
[1741640404494,0.05834413,118.69,118.62,73.99482007]
[1741640404699,0.05834413,118.69,118.64,32.79482007]
[1741640404888,10.1381297,118.69,118.64,32.79482007]
[1741640405997,10.1381297,118.69,118.62,73.99482007]
[1741640407296,0.05834413,118.69,118.65,32.79482007]
[1741640407503,4.3719,118.75,118.67,32.79482007]
[1741640407798,4.3719,118.75,118.68,41.2]
[1741640408099,10.07978557,118.75,118.68,41.2]
[1741640408296,4.2529,118.79,118.71,32.79482007]
[1741640408595,4.2529,118.79,118.72,41.2]
[1741640408790,14.33268557,118.79,118.74,0.05306757]
[1741640409098,0.05386098,118.76,118.74,0.05306757]
[1741640409599,10.13364655,118.76,118.74,0.05306757]
[1741640410095,32.84868105,118.76,118.68,41.2]
[1741640410301,4.1261,118.75,118.68,41.2]
[1741640410497,45.3261,118.75,118.68,41.2]
[1741640410696,55.40588557,118.75,118.68,41.2]
[1741640411297,0.05937859,118.73,118.68,41.2]
[1741640411798,10.13916416,118.73,118.68,41.2]
[1741640411999,0.05937859,118.73,118.68,41.2]
[1741640412189,32.79482007,118.78,118.68,41.2]
[1741640412505,46.98670564,118.78,118.68,41.2]
[1741640412798,4.4168,118.77,118.68,41.2]
[1741640412998,45.6168,118.77,118.68,41.2]
[1741640413190,14.49658557,118.77,118.68,41.2]
[1741640413392,0.05481975,118.74,118.71,0.06231441]
[1741640413799,10.13460532,118.74,118.71,0.06231441]
[1741640414701,0.05481975,118.74,118.71,0.06231441]
[1741640415400,10.13460532,118.74,118.71,0.06231441]
[1741640419598,0.05481975,118.74,118.68,31.12021443]
[1741640420301,0.05481975,118.74,118.65,4.1916]
[1741640420500,20.70158505,118.76,118.67,20.70158505]
[1741640420900,0.05410391,118.73,118.67,20.70158505]
[1741640422303,0.05410391,118.73,118.65,37.3187632]
[1741640422503,33.1271632,118.76,118.65,37.3187632]
[1741640422705,0.06176281,118.7,118.65,37.3187632]
[1741640423304,0.06176281,118.7,118.67,33.1271632]
[1741640423503,4.4168,118.77,118.67,33.1271632]
[1741640423705,4.4168,118.77,118.68,4.3886]
[1741640423905,4.4168,118.77,118.67,33.1271632]
[1741640424701,0.05828111,118.73,118.71,0.05372865]
[1741640429518,0.05828111,118.73,118.64,4.0536]
[1741640429715,33.1271632,118.72,118.63,4.3886]
[1741640429917,8.3645,118.71,118.63,4.3886]
[1741640430516,8.4328,118.66,118.63,12.8226]
[1741640430718,8.49261961,118.66,118.63,12.8226]
[1741640430918,8.4331,118.65,118.63,4.3886]
[1741640431215,0.05981961,118.66,118.61,99.17760033]
[1741640431522,0.05981961,118.66,118.62,8.4348]
[1741640431523,8.4335,118.65,118.62,8.4348]
[1741640431820,0.05981961,118.66,118.61,8.3024]
[1741640432020,8.49241961,118.66,118.63,8.4342]
[1741640432220,0.05981961,118.66,118.61,286.3424]
[1741640432419,0.05981961,118.66,118.62,41.16]
[1741640433320,0.05981961,118.66,118.62,74.2871632]
[1741640433513,41.16,118.75,118.64,33.1271632]
[1741640433715,82.6228632,118.76,118.64,33.1271632]
[1741640433915,8.4288,118.71,118.68,8.4305]
[1741640434216,16.8519,118.75,118.65,41.16]
[1741640434616,0.06274232,118.71,118.69,0.05803667]
[1741640435016,8.43,118.7,118.69,0.05803667]
[1741640435614,8.49164232,118.71,118.69,0.05803667]
[1741640435819,0.06274232,118.71,118.69,0.05803667]
[1741640436020,4.2784,118.76,118.69,41.21803667]
[1741640436323,4.3739,118.78,118.7,33.1271632]
[1741640436523,4.3739,118.78,118.7,41.4922632]
[1741640437111,8.4262,118.75,118.71,8.4283]
[1741640437319,0.05342455,118.75,118.73,0.05535634]
[1741640438119,0.05342455,118.75,118.73,41.19535634]
[1741640439219,8.4235,118.79,118.73,41.19535634]
[1741640439424,4.1723,118.8,118.73,41.19535634]
[1741640439825,8.4243,118.78,118.74,8.426]
[1741640440125,4.1723,118.8,118.74,8.426]
[1741640440623,0.06224881,118.78,118.76,0.06009985]
[1741640441021,8.48614881,118.78,118.76,0.06009985]
[1741640441425,0.06224881,118.78,118.76,0.06009985]
[1741640441620,8.4245,118.77,118.76,0.06009985]
[1741640442426,8.4245,118.77,118.76,9.985e-05]
[1741640442618,12.6345,118.77,118.76,9.985e-05]
[1741640442825,16.7073,118.77,118.76,9.985e-05]
[1741640447123,8.4301,118.7,118.68,278.04]
[1741640447321,78.6389632,118.76,118.68,319.16]
[1741640447831,78.6389632,118.76,118.68,286.4705]
[1741640448031,78.6389632,118.76,118.68,327.5905]
[1741640448222,20.70383702,118.75,118.68,327.5905]
[1741640448422,8.428,118.72,118.71,0.06385946]
[1741640449325,8.428,118.72,118.71,5.946e-05]
[1741640449727,10.948,118.72,118.71,5.946e-05]
[1741640449930,8.433,118.65,118.64,41.12]
[1741640450129,20.70383702,118.7,118.63,277.96]
[1741640450331,4.0445,118.69,118.63,277.96]
[1741640450527,8.4337,118.64,118.63,277.96]
[1741640451130,8.4351,118.62,118.61,131.99520033]
[1741640451427,8.4351,118.62,118.61,90.87520033]
[1741640452024,8.49877918,118.63,118.61,90.87520033]
[1741640452430,0.06367918,118.63,118.61,90.87520033]
[1741640452632,0.06367918,118.63,118.6,0.05425125]
[1741640453221,8.4358,118.61,118.6,5.125e-05]
[1741640454831,0.06367918,118.63,118.6,5.125e-05]
[1741640455229,0.06367918,118.63,118.62,8.4351]
[1741640455430,12.6361,118.69,118.6,33.17319916]
[1741640455627,41.12,118.73,118.62,33.17314791]
[1741640455832,41.12,118.73,118.63,45.2333]
[1741640456133,33.17314791,118.74,118.64,33.17314791]
[1741640456340,45.80924791,118.76,118.65,278.1]
[1741640456530,12.6361,118.76,118.68,33.2312158]
[1741640456735,4.0762,118.76,118.7,8.429]
[1741640457236,4.0762,118.76,118.69,41.12]
[1741640457938,11.57397963,118.73,118.71,0.05507583]
[1741640460340,122.99798576,118.74,118.71,0.05507583]
[1741640460341,0.05641884,118.74,118.71,0.05507583]
[1741640460738,8.428,118.72,118.71,0.05507583]
[1741640462241,8.428,118.72,118.71,7.583e-05]
[1741640462844,10.948,118.72,118.71,7.583e-05]
[1741640463035,44.12114791,118.72,118.71,7.583e-05]
[1741640463238,8.433,118.65,118.64,41.1]
[1741640463543,74.27314791,118.72,118.62,41.1]
[1741640463946,33.17314791,118.7,118.62,41.1]
[1741640464140,4.0298,118.69,118.62,74.27314791]
[1741640464441,0.05455735,118.67,118.65,0.05505873]
[1741640464843,8.4323,118.66,118.65,0.05505873]
[1741640465644,8.4323,118.66,118.65,5.873e-05]
[1741640466244,0.05455735,118.67,118.65,5.873e-05]
[1741640466445,8.48665735,118.67,118.65,5.873e-05]
[1741640466644,0.05455735,118.67,118.65,5.873e-05]
[1741640467145,8.48645735,118.67,118.65,5.873e-05]
[1741640467348,0.05455735,118.67,118.65,5.873e-05]
[1741640467749,12.825,118.73,118.66,41.08]
[1741640468142,8.4303,118.69,118.66,49.512]
[1741640468350,12.825,118.73,118.66,49.512]
[1741640468844,12.825,118.73,118.66,41.08]
[1741640469155,0.05797538,118.71,118.68,0.06183349]
[1741640469447,8.4301,118.69,118.68,0.06183349]
[1741640469647,163.210766,118.92,118.68,33.2349814]
[1741640469845,12.521,118.78,118.68,33.2349814]
[1741640470043,33.17314791,118.76,118.67,278.08]
[1741640470444,8.4274,118.73,118.67,278.08]
[1741640470749,45.69414791,118.78,118.68,33.17314791]
[1741640470949,0.06461751,118.71,118.69,0.06259679]
[1741640471151,8.427,118.74,118.7,49.5092]
[1741640471455,8.4267,118.74,118.7,49.5092]
[1741640471744,12.521,118.78,118.7,41.08]
[1741640472049,8.4273,118.73,118.7,41.08]
[1741640472442,12.521,118.78,118.7,41.08]
[1741640472645,0.0633987,118.73,118.7,41.14126307]
[1741640472843,0.0633987,118.73,118.7,41.08]
[1741640473044,0.0633987,118.73,118.7,41.13781568]
[1741640474155,0.0633987,118.73,118.7,0.05781568]
[1741640474650,8.4284,118.72,118.7,0.05781568]
[1741640474847,0.0633987,118.73,118.7,0.05781568]
[1741640475251,8.4284,118.72,118.7,0.05781568]
[1741640475953,8.4287,118.71,118.7,0.05781568]
[1741640476146,8.4287,118.71,118.7,1.568e-05]
[1741640479154,4.3764987,118.73,118.7,1.568e-05]
[1741640479352,0.0633987,118.73,118.7,1.568e-05]
[1741640479952,0.0633987,118.73,118.7,33.17316359]
[1741640480152,0.0633987,118.73,118.72,8.428]
[1741640480355,0.0633987,118.73,118.72,49.488]
[1741640480555,0.0633987,118.73,118.72,41.06]
[1741640481253,16.9174,118.78,118.72,41.06]
[1741640481658,8.4933,118.78,118.72,41.06]
[1741640481851,8.4248,118.77,118.73,8.427]
[1741640482046,8.4933,118.78,118.72,41.06]
[1741640482251,12.8735,118.78,118.74,8.4262]
[1741640482452,0.06070181,118.76,118.74,0.06314019]
[1741640482857,0.06070181,118.76,118.75,8.4259]
[1741640483057,8.4706,118.83,118.76,33.17314791]
[1741640483258,11.57397963,118.85,118.78,33.17314791]
[1741640483454,11.57397963,118.85,118.8,33.17314791]
[1741640483655,11.57397963,118.85,118.81,41.04]
[1741640483960,277.02316003,118.88,118.81,41.04]
[1741640483961,15.99907963,118.88,118.81,41.04]
[1741640484158,0.06452389,118.84,118.82,0.05808506]
[1741640485552,8.4202,118.83,118.82,0.05808506]
[1741640485751,0.06452389,118.84,118.76,319.04]
[1741640485958,33.17314791,118.86,118.76,319.04]
[1741640486353,33.17314791,118.86,118.76,327.4652]
[1741640486663,33.17314791,118.86,118.76,319.04]
[1741640486955,8.4816505,118.82,118.8,0.05449648]
[1741640487162,0.0601505,118.82,118.8,0.05449648]
[1741640487457,8.4216,118.81,118.8,0.05449648]
[1741640488051,8.4216,118.81,118.8,9.648e-05]
[1741640489050,0.0601505,118.82,118.8,41.02009648]
[1741640489558,8.4216,118.81,118.8,41.02009648]
[1741640489955,8.4216,118.81,118.8,9.648e-05]
[1741640490866,74.25329841,118.82,118.72,4.0104]
[1741640491162,33.17314791,118.8,118.73,41.02]
[1741640491563,8.4249,118.77,118.73,49.4469]
[1741640491957,33.17314791,118.82,118.73,41.02]
[1741640492161,4.2307,118.83,118.74,33.2276092]
[1741640492465,78.45224791,118.88,118.78,33.17314791]
[1741640492658,8.4199,118.84,118.8,8.422]
[1741640492874,37.45224791,118.88,118.79,45.0104]
[1741640493456,33.17314791,118.86,118.79,41.0]
[1741640493655,0.06442958,118.85,118.82,0.06076301]
[1741640493860,8.4202,118.83,118.82,0.06076301]
[1741640494057,8.4202,118.83,118.82,6.301e-05]
[1741640494462,2.52,118.83,118.74,1.68435236]
[1741640494658,33.17314791,118.78,118.74,1.68435236]
[1741640495054,8.4266,118.74,118.73,277.88]
[1741640495358,33.17314791,118.78,118.72,41.0]
[1741640495554,8.4273,118.73,118.72,41.06306491]
[1741640495755,8.4273,118.73,118.72,0.06306491]
[1741640496664,0.06355244,118.75,118.72,0.06306491]
[1741640497257,8.4273,118.73,118.72,0.06306491]
[1741640497858,8.4273,118.73,118.72,6.491e-05]
[1741640498066,2.52,118.73,118.63,41.0]
[1741640498265,102.93938152,118.74,118.66,8.4321]
[1741640498764,102.93938152,118.74,118.63,41.0]
[1741640498966,53.81968152,118.72,118.62,277.88]
[1741640499268,8.4309,118.68,118.67,0.05852315]
[1741640499469,8.4309,118.68,118.67,2.315e-05]
[1741640499767,62.25058152,118.68,118.67,2.315e-05]
[1741640499968,64.77058152,118.68,118.67,2.315e-05]
[1741640500664,8.4365,118.6,118.59,90.87520033]
[1741640501266,8.4365,118.6,118.57,4.0593]
[1741640501665,8.4377,118.59,118.56,41.0]
[1741640501865,0.05968785,118.6,118.56,41.0]
[1741640502366,8.49628785,118.6,118.56,41.0]
[1741640502566,0.05968785,118.6,118.56,41.0]
[1741640502767,0.05968785,118.6,118.56,49.439]
[1741640502970,8.5663,118.67,118.58,53.81968152]
[1741640503161,8.5663,118.67,118.59,278.0]
[1741640503468,94.81968152,118.66,118.59,278.0]
[1741640503666,8.4372,118.6,118.57,41.0]
[1741640503866,94.81968152,118.66,118.57,41.0]
[1741640504267,0.0614024,118.63,118.6,0.05618292]
[1741640504469,0.0614024,118.63,118.6,8.292e-05]
[1741640504674,53.81968152,118.62,118.6,8.292e-05]
[1741640504869,8.4358,118.61,118.6,8.292e-05]
[1741640508777,12.7514,118.61,118.6,8.292e-05]
[1741640508974,53.7514,118.61,118.6,8.292e-05]
[1741640509172,56.2714,118.61,118.6,8.292e-05]
[1741640510475,8.4421,118.53,118.51,45.1274]
[1741640510676,53.81968152,118.59,118.51,45.1274]
[1741640510973,8.4424,118.52,118.5,41.02]
[1741640511170,41.02,118.57,118.49,282.4788]
[1741640511373,94.83968152,118.57,118.48,4.3861]
[1741640511572,8.4435,118.51,118.48,4.3861]
[1741640512079,0.05837486,118.51,118.48,4.40878789]
[1741640512680,8.444,118.5,118.48,4.40878789]
[1741640512873,8.444,118.5,118.48,0.02268789]
[1741640513075,0.05837486,118.51,118.48,0.02268789]
[1741640513479,8.4441,118.5,118.48,0.02268789]
[1741640513679,0.05837486,118.51,118.48,0.02268789]
[1741640514480,0.05837486,118.51,118.44,278.2]
[1741640516986,0.05837486,118.51,118.47,12.5255]
[1741640517180,0.05837486,118.51,118.47,8.316]
[1741640517377,0.05837486,118.51,118.46,41.02]
[1741640517583,0.05837486,118.51,118.46,49.4661]
[1741640517783,0.05837486,118.51,118.46,41.02]
[1741640518087,0.05837486,118.51,118.49,8.444]
[1741640518287,0.05837486,118.51,118.5,41.02]
[1741640518590,41.02,118.62,118.5,41.02]
[1741640518881,53.81968152,118.66,118.54,53.81968152]
[1741640519087,8.4362,118.61,118.57,8.4385]
[1741640519682,0.06296412,118.6,118.58,0.05837486]
[1741640519880,8.4373,118.59,118.58,0.05837486]
[1741640520688,8.49986412,118.6,118.58,0.05837486]
[1741640521189,8.4373,118.59,118.58,0.05837486]
[1741640521891,0.06296412,118.6,118.58,0.05837486]
[1741640523893,8.4373,118.59,118.58,0.05837486]
[1741640525089,0.06296412,118.6,118.58,0.05837486]
[1741640525689,8.4373,118.59,118.58,0.05837486]
[1741640526293,8.4373,118.59,118.58,7.486e-05]
[1741640527290,51.9573,118.59,118.58,7.486e-05]
[1741640527799,49.4373,118.59,118.58,7.486e-05]
[1741640528091,51.9573,118.59,118.58,7.486e-05]
[1741640528297,43.52,118.59,118.5,41.0]
[1741640528495,53.81968152,118.58,118.5,41.0]
[1741640528686,53.81968152,118.58,118.46,332.17968152]
[1741640528892,8.4449,118.49,118.46,319.36]
[1741640529197,41.0,118.55,118.46,319.36]
[1741640529395,8.4454,118.48,118.46,319.36]
[1741640529595,8.4454,118.48,118.46,278.36]
[1741640529792,8.4458,118.47,118.46,278.36]
[1741640530094,0.06329426,118.48,118.43,41.0]
[1741640530299,8.4477,118.45,118.43,41.0]
[1741640530496,0.0601321,118.47,118.42,41.0]
[1741640530792,41.0,118.51,118.42,41.0]
[1741640531097,8.50906396,118.46,118.42,49.4491]
[1741640531290,0.06206396,118.46,118.4,4.346]
[1741640531491,53.88174548,118.46,118.35,90.87520033]
[1741640531699,8.4247,118.45,118.36,41.0]
[1741640531895,0.06239467,118.42,118.36,41.0]
[1741640532493,8.4503,118.41,118.36,49.453]
[1741640532693,0.06239467,118.42,118.36,41.0]
[1741640534500,0.06239467,118.42,118.38,53.81968152]
[1741640534704,8.4476,118.45,118.4,8.4502]
[1741640534999,8.4476,118.45,118.41,41.02]
[1741640535393,4.2719,118.49,118.41,41.02]
[1741640535599,41.02,118.53,118.42,53.81968152]
[1741640535898,41.02,118.53,118.44,0.05978182]
[1741640536089,41.02,118.53,118.45,41.0]
[1741640536892,8.4437,118.5,118.46,8.4465]
[1741640537098,8.49889931,118.5,118.48,0.06449346]
[1741640537300,0.05519931,118.5,118.48,0.06449346]
[1741640537698,4.4557,118.58,118.49,41.0]
[1741640538903,0.05885051,118.55,118.52,0.06318859]
[1741640539102,0.05885051,118.55,118.52,8.50498859]
[1741640539403,0.05885051,118.55,118.53,41.0]
[1741640540698,8.4415,118.53,118.52,0.06318859]
[1741640543596,0.05885051,118.55,118.52,0.06318859]
[1741640544204,8.49935051,118.55,118.52,0.06318859]
[1741640544397,0.05885051,118.55,118.52,0.06318859]
[1741640545395,8.49935051,118.55,118.52,0.06318859]
[1741640545806,0.05885051,118.55,118.52,0.06318859]
[1741640546106,8.4408,118.54,118.52,0.06318859]
[1741640546497,0.05885051,118.55,118.52,8.50538859]
[1741640547601,8.49895051,118.55,118.52,8.50538859]
[1741640547997,0.05885051,118.55,118.52,0.06318859]
[1741640548202,8.4408,118.54,118.52,0.06318859]
[1741640548609,0.05885051,118.55,118.52,0.06318859]
[1741640548809,8.4415,118.53,118.52,0.06318859]
[1741640551110,0.05885051,118.55,118.47,282.9529]
[1741640551111,53.81968152,118.54,118.47,278.52]
[1741640551311,40.98,118.55,118.47,278.52]
[1741640551613,94.77968152,118.58,118.47,332.33968152]
[1741640551805,8.4419,118.53,118.47,332.33968152]
[1741640552005,94.77968152,118.58,118.47,332.33968152]
[1741640552408,0.0587933,118.54,118.47,278.52]
[1741640552610,0.0587933,118.54,118.51,0.06480845]
[1741640553411,0.0587933,118.54,118.51,41.02480845]
[1741640554016,0.0587933,118.54,118.51,0.06480845]
[1741640554714,0.0587933,118.54,118.51,8.45e-06]
[1741640555510,53.87847482,118.54,118.51,8.45e-06]
[1741640555712,8.4422,118.52,118.51,8.45e-06]
[1741640555911,62.26188152,118.52,118.51,8.45e-06]
[1741640556219,66.34438152,118.52,118.51,8.45e-06]
[1741640556408,70.38498152,118.52,118.51,8.45e-06]
[1741640557221,16.5653,118.52,118.51,8.45e-06]
[1741640558111,8.4422,118.52,118.51,8.45e-06]
[1741640558317,0.0587933,118.54,118.51,8.45e-06]
[1741640558518,0.0587933,118.54,118.52,49.4018]
[1741640558722,8.5611,118.61,118.52,40.96]
[1741640558921,8.4393,118.57,118.52,40.96]
[1741640559117,12.9708,118.61,118.52,40.96]
[1741640559424,8.4398,118.56,118.52,40.96]
[1741640559824,12.9708,118.61,118.52,40.96]
[1741640559825,0.06053764,118.55,118.53,0.05797534]
[1741640560021,53.81968152,118.6,118.52,40.96]
[1741640560219,0.06479666,118.55,118.53,0.0552241]
[1741640560421,40.96,118.59,118.53,0.0552241]
[1741640560621,0.05825557,118.55,118.53,0.0552241]
[1741640561022,8.4408,118.54,118.53,0.0552241]
[1741640564223,0.05825557,118.55,118.53,8.4963241]
[1741640564426,70.68748152,118.64,118.54,40.94]
[1741640564926,53.81968152,118.64,118.54,40.94]
[1741640565233,40.94,118.65,118.55,53.81968152]
[1741640565433,53.5208,118.65,118.55,58.00748152]
[1741640565735,53.5208,118.65,118.59,0.05371834]
[1741640565736,0.05701995,118.61,118.59,0.05371834]
[1741640565934,8.4365,118.6,118.59,0.05371834]
[1741640566437,8.4365,118.6,118.59,1.834e-05]
[1741640567335,8.49321995,118.61,118.59,1.834e-05]
[1741640567532,0.05701995,118.61,118.59,1.834e-05]
[1741640568029,8.49331995,118.61,118.59,1.834e-05]
[1741640568529,0.05701995,118.61,118.59,1.834e-05]
[1741640569131,8.4334,118.65,118.61,8.4358]
[1741640569328,8.3627,118.69,118.62,40.92]
[1741640570333,0.05703258,118.67,118.64,0.05545988]
[1741640570933,8.433,118.65,118.64,0.05545988]
[1741640571436,8.433,118.65,118.64,5.988e-05]
[1741640572730,10.953,118.65,118.64,5.988e-05]
[1741640573630,8.433,118.65,118.64,5.988e-05]
[1741640573835,10.953,118.65,118.64,5.988e-05]
[1741640574339,8.433,118.65,118.64,5.988e-05]
[1741640576140,10.953,118.65,118.64,5.988e-05]
[1741640576438,8.433,118.65,118.64,5.988e-05]
[1741640577539,2.52,118.65,118.56,278.4]
[1741640577727,53.81968152,118.63,118.53,4.4237]
[1741640577931,8.6012,118.62,118.53,45.3237]
[1741640578237,8.4408,118.54,118.53,45.3237]
[1741640578438,8.6012,118.62,118.53,40.9]
[1741640578634,8.4408,118.54,118.53,40.9]
[1741640579635,8.50466265,118.55,118.53,40.9]
[1741640579841,0.06426265,118.55,118.53,40.9]
[1741640580243,8.4408,118.54,118.53,40.9]
[1741640580541,0.06426265,118.55,118.53,40.9]
[1741640580740,0.06426265,118.55,118.52,0.05782018]
[1741640581230,8.4415,118.53,118.52,0.05782018]
[1741640582437,8.4415,118.53,118.52,2.018e-05]
[1741640584538,64.80118152,118.53,118.52,2.018e-05]
[1741640584942,56.35968152,118.53,118.44,8.4477]
[1741640585245,40.9,118.52,118.43,4.2134]
[1741640585443,40.9,118.52,118.43,58.03308152]
[1741640586342,0.0578839,118.49,118.46,0.05861432]
[1741640586648,8.4455,118.48,118.46,0.05861432]
[1741640587047,0.0578839,118.49,118.46,0.05861432]
[1741640587244,0.0578839,118.49,118.47,8.4454]
[1741640587448,0.0578839,118.49,118.46,0.05861432]
[1741640587837,8.1478,118.56,118.47,53.81968152]
[1741640588143,4.2047,118.59,118.51,53.81968152]
[1741640588344,4.2047,118.59,118.51,40.9]
[1741640588839,8.4422,118.52,118.51,40.9]
[1741640589038,0.06262002,118.56,118.51,40.9]
[1741640589243,40.9,118.58,118.51,40.9]
[1741640589549,0.0593308,118.55,118.51,40.9]
[1741640589750,0.0593308,118.55,118.53,0.0590255]
[1741640590046,8.4408,118.54,118.53,0.0590255]
[1741640590543,8.4408,118.54,118.53,2.55e-05]
[1741640590743,49.3408,118.54,118.53,2.55e-05]
[1741640590947,53.5521,118.54,118.53,2.55e-05]
[1741640591145,56.0921,118.54,118.53,2.55e-05]
[1741640591950,16.8837,118.53,118.39,92.86712013]
[1741640592146,53.81968152,118.49,118.39,97.13332013]
[1741640592345,45.1113,118.48,118.39,97.13332013]
[1741640592546,8.4499,118.42,118.39,97.13332013]
[1741640592947,53.81968152,118.47,118.39,92.86712013]
[1741640593147,8.4508,118.4,118.39,92.92471509]
[1741640593350,8.4508,118.4,118.39,92.86712013]
[1741640594854,0.05313953,118.42,118.38,0.05759496]
[1741640595250,0.05313953,118.42,118.38,53.87727648]
[1741640595750,40.9,118.47,118.38,53.87727648]
[1741640595954,40.9,118.5,118.42,53.81968152]
[1741640596153,12.6421,118.55,118.46,53.81968152]
[1741640596356,8.4418,118.53,118.47,40.9]
[1741640596555,8.4418,118.53,118.48,53.81968152]
[1741640596752,45.1986,118.58,118.48,53.81968152]
[1741640596951,0.05415979,118.52,118.49,0.05752786]
[1741640597151,0.05415979,118.52,118.47,40.9]
[1741640597354,94.71968152,118.57,118.47,40.9]
[1741640597654,0.05347176,118.51,118.49,0.05650185]
[1741640597857,0.05347176,118.51,118.5,8.4437]
[1741640598052,40.9,118.57,118.47,40.9]
[1741640598256,0.06356676,118.51,118.49,0.05975376]
[1741640598557,94.71968152,118.57,118.47,40.9]
[1741640598756,0.05893209,118.51,118.49,0.06213831]
[1741640598958,94.71968152,118.57,118.47,40.9]
[1741640599156,94.71968152,118.57,118.49,0.06125515]
[1741640599360,8.4428,118.52,118.48,8.445]
[1741640599750,0.06111535,118.54,118.49,0.05649613]
[1741640599957,8.49878592,118.51,118.49,0.05649613]
[1741640600259,94.71968152,118.57,118.47,40.9]
[1741640600557,8.50182704,118.51,118.49,0.06196926]
[1741640600755,8.4433,118.51,118.47,49.3453]
[1741640600955,8.49644073,118.51,118.49,0.06016101]
[1741640601158,0.05314073,118.51,118.49,0.06016101]
[1741640601654,8.4437,118.5,118.49,6.101e-05]
[1741640602254,56.35968152,118.5,118.4,278.54]
[1741640602448,8.4501,118.41,118.39,8.2969]
[1741640602652,53.81968152,118.47,118.36,94.69968152]
[1741640602855,4.1669,118.46,118.36,94.69968152]
[1741640603050,8.4516,118.39,118.36,94.69968152]
[1741640603256,94.69968152,118.45,118.36,40.88]
[1741640603457,0.05615139,118.39,118.36,40.93057348]
[1741640603659,98.71258152,118.45,118.36,40.88]
[1741640603962,0.06165977,118.39,118.36,49.38377348]
[1741640604264,0.05594533,118.39,118.36,0.05057348]
[1741640605061,8.4522,118.38,118.36,0.05057348]
[1741640605452,0.05594533,118.39,118.36,0.05057348]
[1741640606460,0.05594533,118.39,118.36,53.870255]
[1741640606657,0.05594533,118.39,118.36,62.323655]
[1741640606861,0.05594533,118.39,118.36,8.50397348]
[1741640607466,0.05594533,118.39,118.36,0.05057348]
[1741640608155,8.4527,118.38,118.36,0.05057348]
[1741640608358,0.05594533,118.39,118.36,0.05057348]
[1741640609264,8.4529,118.37,118.36,0.05057348]
[1741640609567,0.05594533,118.39,118.36,0.05057348]
[1741640610570,8.4529,118.38,118.36,0.05057348]
[1741640610963,0.05594533,118.39,118.36,0.05057348]
[1741640611871,0.05594533,118.39,118.36,7.348e-05]
[1741640612165,8.4529,118.37,118.36,7.348e-05]
[1741640612868,49.3529,118.37,118.36,7.348e-05]
[1741640615168,8.4529,118.37,118.36,7.348e-05]
[1741640615471,0.05594533,118.39,118.36,7.348e-05]
[1741640615676,103.23388152,118.47,118.37,40.9]
[1741640615872,4.2685,118.46,118.37,40.9]
[1741640616179,45.1685,118.46,118.37,40.9]
[1741640616475,8.4491,118.43,118.37,40.9]
[1741640616671,8.4491,118.43,118.38,53.81968152]
[1741640616871,0.0601587,118.41,118.39,0.05433453]
[1741640617077,4.2685,118.46,118.39,0.05433453]
[1741640617271,0.0630908,118.41,118.39,8.50553453]
[1741640617478,4.2685,118.46,118.39,0.05433453]
[1741640617677,0.06369445,118.41,118.39,0.05433453]
[1741640617971,4.2685,118.46,118.39,0.05433453]
[1741640617972,8.448,118.44,118.39,0.05433453]